bitfinex-derivatives/quotes_SOLF0:USTF0_20250518
["timestamp","ask_amount","ask_price","bid_price","bid_amount"]
[1747594405782,5.8771,170.08,170.01,580.76]
[1747594406082,5.8771,170.08,170.04,5.8784]
[1747594406387,70.98,170.11,170.01,580.76]
[1747594406684,76.8561,170.11,170.06,5.8777]
[1747594406874,70.98,170.11,170.01,580.76]
[1747594407276,5.8768,170.09,170.04,5.8784]
[1747594407575,70.98,170.11,170.01,580.76]
[1747594407782,5.8766,170.1,170.04,5.8782]
[1747594407979,5.8766,170.1,170.01,580.76]
[1747594408177,70.92,170.14,170.01,580.76]
[1747594408383,76.4757,170.13,170.01,580.76]
[1747594408585,70.6,170.13,170.01,580.76]
[1747594409182,5.8757,170.12,170.01,580.76]
[1747594409687,70.6,170.13,170.01,580.76]
[1747594409983,76.4754,170.13,170.01,580.76]
[1747594410184,70.6,170.13,170.01,580.76]
[1747594410484,5.8758,170.12,170.07,5.8772]
[1747594411284,76.4755,170.13,170.08,5.877]
[1747594411786,70.6,170.13,170.08,5.877]
[1747594412390,5.8757,170.12,170.08,5.877]
[1747594413296,5.8757,170.12,170.06,70.92]
[1747594413297,70.92,170.14,170.06,70.92]
[1747594413587,140.96,170.14,170.06,70.92]
[1747594413788,70.04,170.14,170.06,70.92]
[1747594413989,70.04,170.14,170.1,5.8761]
[1747594414190,5.8749,170.15,170.1,5.8761]
[1747594414394,5.8749,170.15,170.06,70.92]
[1747594414587,5.8749,170.15,170.1,5.8761]
[1747594414778,96.94,170.16,170.06,70.92]
[1747594414982,96.94,170.16,170.09,5.8765]
[1747594415179,5.875,170.14,170.06,70.92]
[1747594415386,96.94,170.16,170.06,70.92]
[1747594415689,96.94,170.16,170.1,5.8762]
[1747594415893,5.8752,170.14,170.1,5.8762]
[1747594416190,96.94,170.16,170.06,70.92]
[1747594416380,5.7911,170.17,170.06,70.92]
[1747594416888,5.7911,170.17,170.07,3.9407]
[1747594417191,5.8744,170.16,170.12,5.8755]
[1747594417891,2.83443335,170.15,170.12,5.8755]
[1747594418091,5.8744,170.16,170.12,5.8755]
[1747594418394,2.83951578,170.15,170.12,5.8755]
[1747594418690,2.83951578,170.14,170.12,5.8755]
[1747594418894,5.8744,170.16,170.12,5.8755]
[1747594419097,2.83951578,170.15,170.12,5.8755]
[1747594419293,8.71451578,170.14,170.07,3.9407]
[1747594419493,2.84551574,170.13,170.08,70.9]
[1747594419696,2.84551574,170.12,170.08,70.9]
[1747594419891,5.875,170.14,170.08,70.9]
[1747594420089,2.84572366,170.13,170.1,5.8761]
[1747594420288,2.84572366,170.12,170.1,5.8761]
[1747594420491,2.84572366,170.11,170.1,5.8761]
[1747594420891,2.84572366,170.11,170.08,70.9]
[1747594421090,2.84572366,170.1,170.08,70.9]
[1747594421297,2.84572366,170.09,170.08,70.9]
[1747594421496,2.84572366,170.09,170.08,76.777]
[1747594421795,2.85143907,170.09,170.08,76.777]
[1747594423595,5.8757,170.12,170.08,76.777]
[1747594423791,2.85612035,170.11,170.08,76.777]
[1747594423995,2.85612035,170.1,170.08,76.777]
[1747594424194,2.85612035,170.09,170.08,76.777]
[1747594424393,2.85612035,170.09,170.08,70.9]
[1747594424798,2.85612035,170.09,170.08,76.7771]
[1747594425501,2.85987324,170.09,170.08,76.7771]
[1747594425796,2.85987324,170.09,170.08,70.9]
[1747594426800,2.85987324,170.09,170.08,76.7771]
[1747594427396,2.86029639,170.09,170.08,76.7771]
[1747594427602,2.86029639,170.09,170.08,70.9]
[1747594428295,2.86029639,170.09,170.04,70.9]
[1747594428491,2.86029639,170.08,170.04,70.9]
[1747594428691,2.86029639,170.07,170.06,5.8778]
[1747594428897,69.46,170.16,170.04,70.9]
[1747594429199,5.8764,170.1,170.07,5.8772]
[1747594429394,2.86031185,170.09,170.07,5.8772]
[1747594429699,2.86031185,170.08,170.07,5.8772]
[1747594430102,5.8762,170.11,170.07,5.8772]
[1747594430301,2.85785321,170.1,170.06,5.8777]
[1747594430505,2.85785321,170.09,170.06,5.8777]
[1747594430698,2.85785321,170.08,170.06,5.8777]
[1747594430901,5.8764,170.1,170.06,5.8777]
[1747594431197,2.85791883,170.09,170.06,5.8777]
[1747594431400,5.8762,170.11,170.07,5.8774]
[1747594431595,2.85787437,170.1,170.07,5.8774]
[1747594431801,2.85787437,170.09,170.07,5.8774]
[1747594431998,2.85792664,170.08,170.07,5.8774]
[1747594432503,5.8762,170.11,170.07,5.8774]
[1747594432704,2.85800106,170.1,170.07,5.8774]
[1747594433003,2.85800106,170.09,170.07,5.8774]
[1747594433204,5.8762,170.11,170.07,5.8774]
[1747594433404,2.85814174,170.1,170.07,5.8774]
[1747594433607,2.85814174,170.09,170.07,5.8774]
[1747594433910,5.8762,170.11,170.07,5.8774]
[1747594434098,2.85814174,170.1,170.07,5.8774]
[1747594434298,2.85814174,170.09,170.07,5.8774]
[1747594434499,69.46,170.16,170.04,70.9]
[1747594434797,2.85458745,170.15,170.04,70.9]
[1747594434997,2.85462813,170.14,170.07,5.8771]
[1747594435200,2.85462813,170.13,170.07,5.8771]
[1747594435496,2.85462813,170.12,170.04,70.9]
[1747594435800,8.73072813,170.11,170.04,70.9]
[1747594436000,2.85462813,170.1,170.04,70.9]
[1747594436197,2.85462813,170.09,170.04,70.9]
[1747594436404,2.85462813,170.08,170.04,70.9]
[1747594436702,5.8761,170.11,170.07,5.8772]
[1747594436908,2.85659489,170.1,170.07,5.8772]
[1747594437204,2.85659489,170.09,170.07,5.8772]
[1747594437409,5.48672391,170.15,170.04,70.9]
[1747594437708,2.85766005,170.14,170.05,69.6807]
[1747594438004,5.48672391,170.15,170.12,5.8757]
[1747594438005,2.85766005,170.13,170.12,5.8757]
[1747594438209,5.48672391,170.15,170.12,68.04]
[1747594438396,2.85742527,170.14,170.12,68.04]
[1747594438597,5.48672391,170.15,170.12,68.04]
[1747594438801,2.85736603,170.14,170.13,5.8753]
[1747594439004,5.48672391,170.15,170.12,68.04]
[1747594439401,5.48672391,170.15,170.14,5.875]
[1747594440303,5.48672391,170.2,170.16,5.8741]
[1747594440506,2.85715228,170.19,170.12,70.0668]
[1747594440709,2.85715228,170.18,170.12,70.0668]
[1747594441010,2.85715228,170.17,170.12,70.0668]
[1747594441307,2.85715228,170.16,170.1,68.02]
[1747594441508,2.85715228,170.15,170.1,68.02]
[1747594441707,2.85715228,170.14,170.1,68.02]
[1747594441900,2.85715228,170.13,170.1,68.02]
[1747594442204,5.8746,170.16,170.1,68.02]
[1747594442407,2.85696758,170.15,170.1,68.02]
[1747594442597,2.85696758,170.14,170.11,5.876]
[1747594442803,2.85696758,170.13,170.11,5.876]
[1747594443007,73.854,170.17,170.12,5.8756]
[1747594443212,2.85703889,170.16,170.12,5.8756]
[1747594443405,2.85703889,170.15,170.1,68.02]
[1747594443607,2.85703889,170.14,170.13,5.8751]
[1747594444513,5.48672391,170.19,170.1,68.02]
[1747594444806,2.85649269,170.18,170.1,70.0097]
[1747594445013,2.85649269,170.17,170.1,70.0097]
[1747594445207,5.48672391,170.19,170.16,5.8742]
[1747594445410,8.72943789,170.18,170.1,70.0097]
[1747594445611,2.85553789,170.17,170.15,5.8744]
[1747594445805,2.85553789,170.16,170.15,5.8744]
[1747594446115,5.48672391,170.19,170.15,5.8744]
[1747594446314,2.85474848,170.18,170.12,68.02]
[1747594446518,2.85474848,170.17,170.12,68.02]
[1747594446813,2.85481622,170.16,170.12,68.02]
[1747594447014,67.88,170.21,170.12,68.02]
[1747594447213,2.8545938,170.2,170.17,5.8737]
[1747594447411,2.8545938,170.19,170.17,5.8737]
[1747594447612,2.85421821,170.18,170.17,5.8737]
[1747594447818,2.85421821,170.18,170.16,5.8743]
[1747594448110,77.02282391,170.22,170.12,68.02]
[1747594448314,2.85089257,170.21,170.12,68.02]
[1747594448510,2.85089257,170.2,170.13,1.939]
[1747594448708,5.48672391,170.22,170.13,3.8975]
[1747594448916,2.85066613,170.21,170.13,3.8975]
[1747594449113,5.48672391,170.22,170.21,5.8726]
[1747594449317,8.33579123,170.22,170.21,5.8726]
[1747594449817,5.48672391,170.22,170.21,5.8726]
[1747594450010,5.48672391,170.26,170.24,5.8716]
[1747594450308,2.84867408,170.25,170.17,70.0149]
[1747594450508,5.48672391,170.26,170.25,5.8712]
[1747594450713,8.33316242,170.26,170.25,5.8712]
[1747594451316,8.33155586,170.26,170.25,5.8712]
[1747594451918,8.33155586,170.26,170.24,5.8715]
[1747594452219,8.33155586,170.26,170.17,70.0149]
[1747594452220,5.48672391,170.26,170.17,70.0149]
[1747594452414,5.48672391,170.26,170.24,5.8713]
[1747594452921,5.48672391,170.26,170.17,70.0149]
[1747594453419,67.5,170.3,170.17,70.0149]
[1747594453720,2.8412102,170.29,170.24,5.8713]
[1747594453919,2.8412102,170.28,170.17,70.0149]
[1747594454129,67.5,170.3,170.17,70.0149]
[1747594454418,2.83950677,170.29,170.17,70.0149]
[1747594454622,7.45382391,170.32,170.17,84.20172328]
[1747594454812,2.83994305,170.31,170.17,84.20172328]
[1747594455119,5.48672391,170.32,170.3,5.8694]
[1747594455816,5.48672391,170.32,170.31,5.8691]
[1747594456619,5.48672391,170.32,170.26,68.0]
[1747594456818,135.24,170.35,170.26,68.0]
[1747594457006,2.83591818,170.34,170.26,68.0]
[1747594457210,5.8688,170.32,170.27,5.8705]
[1747594457821,135.24,170.35,170.24,67.98]
[1747594458120,2.83443037,170.34,170.24,67.98]
[1747594458319,2.83443037,170.33,170.22,1.8857]
[1747594458520,2.83443037,170.32,170.23,67.98]
[1747594458717,4.82943037,170.31,170.23,67.98]
[1747594459022,2.83443037,170.3,170.23,67.98]
[1747594459323,1.995,170.31,170.23,67.98]
[1747594459922,7.8642,170.31,170.23,67.98]
[1747594460220,1.995,170.31,170.23,67.98]
[1747594460519,7.8643,170.31,170.23,67.98]
[1747594461424,1.995,170.31,170.23,67.98]
[1747594461722,1.995,170.31,170.28,5.8701]
[1747594462419,1.995,170.31,170.27,5.8704]
[1747594462821,7.8644,170.31,170.27,5.8704]
[1747594463325,1.995,170.31,170.26,5.8708]
[1747594463722,1.995,170.31,170.24,5.8713]
[1747594464023,67.22,170.3,170.24,5.8713]
[1747594464423,5.8704,170.28,170.24,5.8713]
[1747594464624,67.22,170.3,170.25,5.8712]
[1747594465012,73.0896,170.3,170.21,575.44]
[1747594465213,67.22,170.3,170.21,575.44]
[1747594465724,5.8701,170.29,170.21,575.44]
[1747594466023,67.22,170.3,170.21,575.44]
[1747594467326,5.8699,170.29,170.26,5.8709]
[1747594467523,5.8699,170.29,170.21,575.44]
[1747594467722,5.8699,170.29,170.25,5.8711]
[1747594468126,5.8702,170.28,170.25,5.8711]
[1747594470130,5.87,170.29,170.26,5.8708]
[1747594472429,5.87,170.29,170.25,5.8711]
[1747594472831,5.87,170.29,170.21,577.3621]
[1747594474033,8.85816804,170.33,170.21,577.3621]
[1747594474326,67.2,170.33,170.21,577.3621]
[1747594474532,5.8687,170.33,170.21,577.3621]
[1747594474826,95.0,170.35,170.21,577.3621]
[1747594475133,73.868,170.35,170.31,5.8691]
[1747594475833,5.8682,170.34,170.31,5.8691]
[1747594476532,5.8682,170.34,170.3,5.8694]
[1747594476734,68.0,170.35,170.3,5.8694]
[1747594477133,5.8684,170.34,170.3,5.8694]
[1747594477523,5.8684,170.34,170.31,5.8691]
[1747594477726,67.18,170.37,170.27,67.2]
[1747594477924,76.05816804,170.39,170.28,1.8509]
[1747594478231,134.38,170.39,170.28,3.8926]
[1747594478630,134.38,170.39,170.34,5.8679]
[1747594479634,140.2466,170.39,170.34,5.8679]
[1747594480234,134.38,170.39,170.34,5.8679]
[1747594480530,5.8671,170.37,170.28,3.8926]
[1747594481435,134.38,170.39,170.28,3.8926]
[1747594481629,2.82954238,170.38,170.28,1.8509]
[1747594481932,8.85816804,170.36,170.24,1.8815]
[1747594482131,2.82954238,170.35,170.25,67.18]
[1747594482333,5.8694,170.31,170.27,5.8702]
[1747594482534,67.16,170.34,170.25,67.18]
[1747594482728,2.83231293,170.33,170.25,67.18]
[1747594482931,5.8697,170.3,170.26,5.8706]
[1747594483536,5.8697,170.3,170.27,5.8705]
[1747594484136,5.8697,170.3,170.25,67.18]
[1747594484635,5.8692,170.31,170.27,5.8705]
[1747594484837,5.8692,170.31,170.25,67.18]
[1747594485943,5.8681,170.34,170.3,5.8694]
[1747594486129,67.18,170.38,170.25,67.18]
[1747594486130,67.14,170.36,170.25,67.18]
[1747594486332,69.97177547,170.35,170.25,67.18]
[1747594486634,5.869,170.32,170.27,5.8703]
[1747594486836,5.869,170.32,170.25,67.18]
[1747594487137,5.869,170.32,170.28,5.8701]
[1747594487439,5.8692,170.31,170.25,67.18]
[1747594488038,5.8695,170.3,170.25,67.18]
[1747594488239,67.14,170.35,170.25,67.18]
[1747594488441,2.84026371,170.34,170.25,67.18]
[1747594488738,5.8694,170.31,170.27,5.8702]
[1747594489236,5.8694,170.31,170.28,5.8701]
[1747594489437,67.14,170.35,170.28,5.8701]
[1747594489634,2.83995229,170.34,170.25,67.18]
[1747594489833,2.83995229,170.33,170.25,67.18]
[1747594490044,5.8694,170.31,170.27,5.8702]
[1747594490338,5.8694,170.31,170.25,67.18]
[1747594490536,5.8694,170.31,170.28,5.8702]
[1747594491343,5.8689,170.32,170.28,5.8702]
[1747594491540,2.84290286,170.31,170.28,5.8702]
[1747594491740,5.8689,170.32,170.28,5.8702]
[1747594491936,2.8317286,170.31,170.28,5.8702]
[1747594492139,5.8689,170.32,170.29,5.8698]
[1747594492339,2.83339166,170.31,170.29,5.8698]
[1747594492539,5.8689,170.32,170.29,5.8698]
[1747594492739,2.83336794,170.31,170.29,5.8698]
[1747594492940,67.14,170.35,170.29,5.8698]
[1747594493143,2.83380566,170.34,170.29,5.8698]
[1747594493345,2.83380566,170.33,170.29,5.8698]
[1747594493546,2.83380566,170.32,170.29,5.8698]
[1747594493746,2.83380566,170.31,170.29,5.8698]
[1747594493937,5.8686,170.33,170.29,5.8698]
[1747594494139,2.83536274,170.32,170.29,5.8698]
[1747594494340,2.83536274,170.31,170.29,5.8698]
[1747594494647,2.83536274,170.3,170.29,5.8698]
[1747594494846,5.48672391,170.37,170.29,67.1]
[1747594495147,8.32286513,170.36,170.29,67.1]
[1747594495341,2.83614122,170.35,170.29,67.1]
[1747594496439,5.48672391,170.36,170.29,67.1]
[1747594496638,2.8336707,170.35,170.29,67.1]
[1747594496842,5.48672391,170.36,170.29,67.1]
[1747594497052,2.83352641,170.35,170.3,1.8563]
[1747594497346,5.48672391,170.36,170.34,5.8678]
[1747594497549,2.83803089,170.35,170.34,5.8678]
[1747594498340,5.48672391,170.36,170.35,5.8678]
[1747594498544,2.83510893,170.36,170.35,5.8678]
[1747594499437,2.83510893,170.36,170.3,1.8563]
[1747594499640,2.83510893,170.35,170.3,1.8563]
[1747594499944,2.8334741,170.34,170.3,1.8563]
[1747594500144,69.064,170.4,170.32,5.8685]
[1747594500339,2.8333065,170.39,170.32,5.8685]
[1747594500543,2.8333065,170.38,170.3,1.8563]
[1747594500757,69.064,170.4,170.3,1.8563]
[1747594500758,2.8333065,170.37,170.3,1.8563]
[1747594500949,2.8333065,170.36,170.3,1.8563]
[1747594501148,2.8333065,170.35,170.3,1.8563]
[1747594501443,5.8673,170.37,170.33,5.8683]
[1747594501648,2.83291378,170.36,170.3,1.8563]
[1747594501845,2.83291378,170.35,170.3,1.8563]
[1747594502041,5.8671,170.37,170.3,1.8563]
[1747594502238,2.83280041,170.36,170.3,1.8563]
[1747594502441,2.83280041,170.35,170.3,1.8563]
[1747594502643,5.8671,170.37,170.3,1.8563]
[1747594502950,2.83250813,170.36,170.33,5.8681]
[1747594503150,2.83250813,170.35,170.33,5.8681]
[1747594503343,5.8671,170.37,170.33,5.8681]
[1747594503650,2.83151748,170.36,170.35,5.8678]
[1747594503848,2.8313585,170.36,170.3,1.8563]
[1747594504049,69.064,170.4,170.3,1.8563]
[1747594504242,2.83145969,170.39,170.3,1.8563]
[1747594504443,2.83145969,170.38,170.3,1.8563]
[1747594504641,2.83145969,170.37,170.3,1.8563]
[1747594504840,2.83145969,170.36,170.3,1.8563]
[1747594505058,69.064,170.4,170.3,1.8563]
[1747594505241,5.8673,170.37,170.33,5.8682]
[1747594505448,2.83045278,170.36,170.33,5.8682]
[1747594505752,5.8673,170.37,170.33,5.8682]
[1747594505939,2.8301163,170.36,170.33,5.8682]
[1747594506143,5.8673,170.37,170.33,5.8682]
[1747594506346,2.83006652,170.36,170.33,5.8682]
[1747594506553,69.064,170.4,170.33,5.8682]
[1747594506853,2.82991149,170.39,170.32,5.8687]
[1747594507151,69.064,170.4,170.29,67.1]
[1747594507152,2.82991149,170.38,170.29,67.1]
[1747594507450,5.868,170.35,170.29,67.1]
[1747594507750,2.82991149,170.34,170.32,5.8686]
[1747594507951,69.064,170.4,170.29,67.1]
[1747594508153,2.83150395,170.39,170.29,67.1]
[1747594508351,5.8674,170.36,170.29,67.1]
[1747594508551,2.83150395,170.35,170.29,67.1]
[1747594508754,5.48672391,170.39,170.29,67.1]
[1747594508953,2.82839481,170.38,170.29,67.1]
[1747594509154,2.82839481,170.37,170.29,67.1]
[1747594509347,2.82839481,170.36,170.35,5.8678]
[1747594509849,5.48672391,170.39,170.36,5.8674]
[1747594510054,2.82860782,170.38,170.36,5.8674]
[1747594510355,2.82860782,170.37,170.36,5.8674]
[1747594510553,2.82860782,170.38,170.36,5.8674]
[1747594511558,8.69530782,170.38,170.36,5.8674]
[1747594511758,2.82860782,170.37,170.35,5.8677]
[1747594511959,2.82860782,170.37,170.29,67.1]
[1747594512254,2.82860782,170.36,170.28,67.1]
[1747594512453,2.82860782,170.35,170.28,67.1]
[1747594512655,2.82860782,170.34,170.28,67.1]
[1747594512858,69.004,170.4,170.28,67.1]
[1747594513053,2.83183255,170.39,170.28,67.1]
[1747594513257,2.83183255,170.38,170.28,67.1]
[1747594513557,2.83183255,170.37,170.33,5.8682]
[1747594513757,2.83183255,170.36,170.33,5.8682]
[1747594513961,2.83183255,170.35,170.33,5.8682]
[1747594514258,2.83183255,170.34,170.33,5.8682]
[1747594514453,2.83275306,170.39,170.34,5.868]
[1747594514655,2.83275306,170.38,170.34,5.868]
[1747594514847,69.004,170.4,170.28,67.1]
[1747594514848,2.83275306,170.37,170.28,67.1]
[1747594515051,2.83275306,170.36,170.28,67.1]
[1747594515251,2.83275306,170.35,170.28,67.1]
[1747594515449,2.83275306,170.34,170.28,67.1]
[1747594515650,5.8674,170.36,170.33,5.8683]
[1747594515853,2.83349704,170.35,170.33,5.8683]
[1747594516057,2.83349704,170.34,170.33,5.8683]
[1747594516959,2.83409725,170.35,170.33,5.8683]
[1747594517265,2.83409725,170.34,170.33,5.8683]
[1747594517761,5.48672391,170.39,170.28,67.1]
[1747594517953,2.83454282,170.38,170.28,67.1]
[1747594518153,2.83454282,170.37,170.28,67.1]
[1747594518454,2.83454282,170.36,170.34,5.8679]
[1747594518657,2.83454282,170.35,170.34,5.8679]
[1747594518958,2.83454282,170.37,170.34,5.8679]
[1747594519154,2.83454282,170.36,170.34,5.8679]
[1747594519355,5.8665,170.39,170.35,5.8678]
[1747594519555,2.83112167,170.38,170.35,5.8678]
[1747594519860,2.83112167,170.37,170.35,5.8678]
[1747594520161,2.83112167,170.36,170.28,67.1]
[1747594520460,2.83112167,170.35,170.28,67.1]
[1747594520759,5.8672,170.37,170.34,5.8681]
[1747594520963,2.83133279,170.36,170.34,5.8681]
[1747594521161,2.83133279,170.35,170.34,5.8681]
[1747594521362,2.83133279,170.36,170.34,5.8681]
[1747594521556,2.83133279,170.35,170.34,5.8681]
[1747594521759,2.83142337,170.35,170.28,67.1]
[1747594522052,7.34012391,170.41,170.29,8.85816804]
[1747594522256,7.34012391,170.41,170.3,2.0361]
[1747594522257,2.83122816,170.4,170.3,2.0361]
[1747594522460,2.83122816,170.39,170.38,5.8667]
[1747594524266,5.48672391,170.41,170.39,5.8662]
[1747594524466,2.82900542,170.4,170.39,5.8662]
[1747594526561,2.82900542,170.4,170.38,5.8667]
[1747594526757,9.35842391,170.45,170.38,5.8667]
[1747594526963,2.82922351,170.44,170.38,5.8667]
[1747594527164,5.8656,170.42,170.38,5.8667]
[1747594527367,2.82922351,170.41,170.39,5.8663]
[1747594527571,76.31842391,170.45,170.35,67.1]
[1747594527772,5.865,170.43,170.35,67.1]
[1747594527973,2.82853734,170.42,170.35,67.1]
[1747594528175,2.82881281,170.41,170.35,67.1]
[1747594528370,5.8648,170.44,170.35,67.1]
[1747594528580,2.82818318,170.43,170.36,66.94]
[1747594528774,2.82818318,170.42,170.36,66.94]
[1747594528974,72.58672391,170.46,170.36,66.94]
[1747594529279,2.82812108,170.45,170.36,66.94]
[1747594529576,2.82812108,170.44,170.36,66.94]
[1747594529772,5.48672391,170.46,170.37,1.8546]
[1747594529973,2.82726524,170.45,170.37,1.8546]
[1747594530178,5.48672391,170.46,170.38,1.9898]
[1747594530371,2.82746796,170.45,170.38,1.9898]
[1747594530572,5.48672391,170.46,170.39,2.0241]
[1747594530772,2.82622239,170.45,170.4,66.94]
[1747594530973,5.48672391,170.46,170.4,66.94]
[1747594531168,2.82618178,170.45,170.38,1.9898]
[1747594531367,69.74618178,170.44,170.33,2.0241]
[1747594531578,8.85816804,170.42,170.33,2.0241]
[1747594531774,5.8666,170.39,170.34,5.8679]
[1747594531972,1.9051,170.41,170.32,66.94]
[1747594532173,2.82545746,170.4,170.34,5.8679]
[1747594532367,8.69215746,170.39,170.34,5.8679]
[1747594532566,2.82545746,170.38,170.34,11.34795145]
[1747594532771,1.9051,170.41,170.34,11.34795145]
[1747594532980,2.82879497,170.4,170.34,11.34795145]
[1747594533184,8.69529497,170.39,170.35,5.8675]
[1747594533482,2.82879497,170.38,170.34,5.48005145]
[1747594533780,1.9051,170.41,170.34,5.48005145]
[1747594534076,5.867,170.38,170.34,11.34805145]
[1747594534280,2.82913682,170.37,170.34,11.34805145]
[1747594534478,1.9051,170.41,170.34,11.34805145]
[1747594534678,2.82982627,170.4,170.34,11.34805145]
[1747594534878,2.82982627,170.39,170.34,5.48005145]
[1747594535074,8.69662627,170.38,170.34,5.48005145]
[1747594535281,5.8668,170.38,170.34,5.48005145]
[1747594535484,5.8668,170.38,170.34,11.34805145]
[1747594535779,5.8671,170.37,170.34,11.34805145]
[1747594535980,1.9051,170.41,170.34,11.34805145]
[1747594536171,2.83033111,170.4,170.34,11.34805145]
[1747594536372,2.83033111,170.39,170.34,5.48005145]
[1747594536676,68.753,170.43,170.34,5.48005145]
[1747594536876,2.8305297,170.42,170.39,5.866]
[1747594537084,2.8305297,170.41,170.39,5.866]
[1747594537382,5.48672391,170.42,170.37,66.94]
[1747594537577,5.48672391,170.42,170.4,5.8658]
[1747594538581,2.83035074,170.41,170.29,10.71276804]
[1747594538793,8.85816804,170.39,170.24,514.24863496]
[1747594538974,8.85816804,170.33,170.24,7.28863496]
[1747594539183,8.85816804,170.3,170.24,7.28863496]
[1747594539476,2.83035074,170.29,170.24,7.28863496]
[1747594539878,6.85335074,170.28,170.19,5.47533752]
[1747594540076,80.55035074,170.27,170.19,5.47533752]
[1747594540284,5.872,170.23,170.19,5.47533752]
[1747594540483,77.72,170.27,170.19,5.47533752]
[1747594540783,2.82664542,170.26,170.19,5.47533752]
[1747594540977,2.82664542,170.25,170.2,5.8729]
[1747594541184,77.72,170.27,170.19,5.47533752]
[1747594541388,2.82795022,170.26,170.19,5.47533752]
[1747594541686,5.8717,170.24,170.19,5.47533752]
[1747594542284,5.8712,170.25,170.2,5.8729]
[1747594542882,5.8712,170.25,170.19,11.34863752]
[1747594543281,5.8711,170.26,170.19,5.47533752]
[1747594543478,30.9105,170.32,170.19,5.47533752]
[1747594543780,80.40216495,170.31,170.2,1.9346]
[1747594543981,2.82216495,170.3,170.2,1.9346]
[1747594544185,8.30888886,170.3,170.2,1.9346]
[1747594544389,5.48672391,170.3,170.2,1.9346]
[1747594544781,5.48672391,170.3,170.25,5.871]
[1747594544989,5.48672391,170.3,170.24,77.56]
[1747594545487,5.48672391,170.3,170.25,5.8712]
[1747594546189,11.35632391,170.3,170.24,83.4315]
[1747594546588,11.35632391,170.3,170.24,77.56]
[1747594546991,5.48672391,170.3,170.24,77.56]
[1747594547688,77.06,170.35,170.24,154.62]
[1747594547986,2.81818168,170.34,170.25,1.9822]
[1747594548188,77.06,170.35,170.25,1.9822]
[1747594548379,2.81806821,170.34,170.25,1.9822]
[1747594548580,77.06,170.35,170.25,1.9822]
[1747594548782,2.81816787,170.34,170.25,1.9822]
[1747594549088,77.06,170.35,170.25,1.9822]
[1747594549385,2.81811218,170.34,170.25,1.9822]
[1747594549687,77.06,170.35,170.25,1.9822]
[1747594549890,5.8682,170.34,170.29,5.8696]
[1747594550488,82.94672391,170.36,170.25,1.9822]
[1747594550689,2.81803325,170.35,170.25,1.9822]
[1747594550881,2.81803325,170.34,170.25,1.9822]
[1747594551082,77.46,170.36,170.27,5.8705]
[1747594551283,2.81893209,170.35,170.25,1.9822]
[1747594551586,5.8686,170.33,170.28,5.8698]
[1747594551785,5.8686,170.33,170.25,1.9822]
[1747594552978,77.12,170.35,170.27,5.8705]
[1747594553178,2.81858212,170.34,170.25,1.9822]
[1747594553384,2.81858212,170.33,170.25,1.9822]
[1747594553587,2.81807943,170.32,170.25,1.9822]
[1747594553788,5.8688,170.32,170.27,5.8704]
[1747594554486,5.8688,170.32,170.28,5.8702]
[1747594554888,5.8692,170.31,170.25,1.9822]
[1747594555191,5.8692,170.31,170.27,5.8704]
[1747594555993,5.8696,170.3,170.26,5.8709]
[1747594556291,77.56,170.33,170.24,77.56]
[1747594556489,4.74580431,170.32,170.24,77.56]
[1747594556700,16.99718678,170.31,170.18,2.0206]
[1747594556997,14.18118247,170.27,170.14,2.0206]
[1747594557196,87.05110431,170.26,170.15,5.8746]
[1747594557489,83.33600431,170.25,170.12,80.4]
[1747594557692,5.8729,170.21,170.12,80.4]
[1747594557886,80.52,170.25,170.12,80.4]
[1747594558086,4.69746988,170.24,170.12,80.4]